Cogmind - Beta 14 @@@ ROGUE MODE // 2024.10.17 @ 22:55:13 Player: Dadrick Result: Destroyed by H-71 Marshal with Heavy Mass Driver Performance ------------- Evolutions (6) 3000 Regions Visited (20) 4000 Robots Destroyed (160) 800 Value Destroyed (3795) 3795 Prototype IDs (56) 1120 Alien Tech Used (2) 400 Bonus (855) 855 TOTAL SCORE: 13970 Bonus ------- High Alert Combat Kills 23 Follower Combat Kills 285 Registered with UFD 300 Met Data Miner 300 Met Zhirov 300 Friendly Fire -353 Cogmind --------- Core Integrity 0/1150 Matter 198/300 Energy 100/100 System Corruption 10% Temperature Cool (1) Movement Flying (80) Location -4/Factory Parts ------- > --- POWER (2) -------- (None) > --- PROPULSION (6) --- Improved Medium Treads Improved Medium Treads Field Propulsion Array > --- UTILITY (9) ------ Improved Signal Interpreter Improved Armor Integrity Analyzer A0-MCA's Component Scanner > --- WEAPON (2) ------- Spear > --- INVENTORY (5) ---- Transmission Jammer Advanced Reaction Control System Botcube Peak State ------------ > --- POWER ------------ Makeshift Power Source Micro Fission Core > --- PROPULSION ------- Armored Medium Treads Xenon Bombardment Thruster Cooled VTOL Module Nuclear Pulse Thruster Impulse Thruster Array > --- UTILITY ---------- Advanced Sensor Array Improved Signal Interpreter Improved Terrain Scanner Advanced Terrain Scan Processor Hacking Suite Improved Hacking Suite Improved System Shield > --- WEAPON ----------- Katana Makeshift Spear > --- INVENTORY -------- Fusion Compressor ECM Suite A0-MCA's Component Scanner Heavy Rocket Launcher Botcube [Rating: 83] Favorites ----------- Power Heavy Ion Engine Engine Heavy Ion Engine Power Core Light Nuclear Core Propulsion Light Treads Treads Light Treads Leg Carbon-fiber Leg Hover Unit Cooled Aerolev Unit Flight Unit Cooled VTOL Module Utility Hacking Suite Device Improved Terrain Scanner Storage Large Storage Unit Processor Advanced Terrain Scan Processor Hackware Hacking Suite Protection Light Armor Plating Weapon Gatling Laser Energy Gun Gatling Laser Energy Cannon Advanced Beam Cannon Ballistic Gun Light Assault Rifle Ballistic Cannon Improved Light Cannon Launcher Rocket Launcher Special Weapon Mining Laser Slashing Weapon Katana Piercing Weapon Makeshift Spear Build | -11 -10 -9 -9 -8 -8 -8 -8 -6 -6 -6 -6 -6 -6 -5 -5 -5 -5 -5 -4 -4 ------- Run | Yrd Mat Mat Min Mat Sto Rec Scr Fac Was Fac Low Low Dat Pro Fac Upp Upp Zhi Pro Fac Slots Evolved 12 | . . 2 . 2 . . . 4 . . . . . . 2 . . . . 2 Power 1 | . . . . . . . . . . . . . . . 1 . . . . . Propulsion 4 | . . 1 . 1 . . . 2 . . . . . . . . . . . . Utility 7 | . . 1 . 1 . . . 2 . . . . . . 1 . . . . 2 Weapon . | . . . . . . . . . . . . . . . . . . . . . Parts Attached 172 | 7 15 24 2 20 19 2 10 7 1 19 1 5 . 1 16 8 3 2 . 10 Power 18 | 1 3 4 . 1 2 . . . . 1 . 1 . . 3 2 . . . . Engine 13 | 1 1 4 . 1 2 . . . . 1 . 1 . . 1 1 . . . . Core 5 | . 2 . . . . . . . . . . . . . 2 1 . . . . Reactor . | . . . . . . . . . . . . . . . . . . . . . Propulsion 66 | 2 2 11 1 8 7 2 7 4 . 9 . 1 . . 5 . 1 . . 6 Treads 33 | 2 2 8 1 1 7 2 3 1 . . . . . . 2 . 1 . . 3 Leg 10 | . . 3 . 7 . . . . . . . . . . . . . . . . Wheel . | . . . . . . . . . . . . . . . . . . . . . Hover 8 | . . . . . . . . 3 . 5 . . . . . . . . . . Flight 15 | . . . . . . . 4 . . 4 . 1 . . 3 . . . . 3 Utility 40 | 2 4 2 . 5 3 . 2 3 . 6 1 . . 1 6 3 . 2 . . Device 20 | 1 2 1 . 1 . . 2 2 . 5 1 . . . 4 1 . . . . Storage 3 | 1 2 . . . . . . . . . . . . . . . . . . . Processor 5 | . . . . . . . . 1 . . . . . . 2 1 . 1 . . Hackware 7 | . . . . 2 1 . . . . 1 . . . 1 . 1 . 1 . . Protection 5 | . . 1 . 2 2 . . . . . . . . . . . . . . . Artifact . | . . . . . . . . . . . . . . . . . . . . . Weapon 48 | 2 6 7 1 6 7 . 1 . 1 3 . 3 . . 2 3 2 . . 4 Energy Gun 8 | 1 3 1 . 2 . . . . . 1 . . . . . . . . . . Energy Cannon 6 | . 1 3 1 1 . . . . . . . . . . . . . . . . Ballistic Gun 6 | 1 1 . . 2 2 . . . . . . . . . . . . . . . Ballistic Cannon 4 | . . 1 . . 2 . . . . . . . . . . . . . . 1 Launcher 14 | . . 1 . 1 2 . . . 1 1 . 1 . . 1 3 2 . . 1 Special Weapon 1 | . 1 . . . . . . . . . . . . . . . . . . . Impact Weapon . | . . . . . . . . . . . . . . . . . . . . . Slashing Weapon 6 | . . 1 . . 1 . 1 . . 1 . . . . 1 . . . . 1 Piercing Weapon 3 | . . . . . . . . . . . . 2 . . . . . . . 1 Special Melee Weapon . | . . . . . . . . . . . . . . . . . . . . . Unidentified Prototypes 10 | . . 1 . 3 1 . . 1 . 1 . . . . 1 . . 1 . 1 Parts Lost 47 | . 4 7 . 5 . . . 1 . 2 . . . . 11 4 4 . . 9 Power 9 | . 2 2 . . . . . . . . . . . . 2 2 1 . . . Propulsion 17 | . . 3 . 2 . . . 1 . 1 . . . . 3 1 2 . . 4 Utility 13 | . 1 . . 3 . . . . . . . . . . 5 . 1 . . 3 Weapon 8 | . 1 2 . . . . . . . 1 . . . . 1 1 . . . 2 Highest Loss Streak 7 | . 4 4 . 2 . . . 1 . 2 . . . . 7 3 2 . . 4 To Critical Strikes . | . . . . . . . . . . . . . . . . . . . . . Average Slot Usage (%) 90 | . 97 93 100 97 99 100 100 91 100 96 80 90 93 93 84 53 39 39 47 38 Engine 6 | . 3 10 11 9 8 9 9 6 6 6 6 6 6 6 1 3 . . . . Core 1 | . 10 . . . . . . . . . . . . . 4 1 2 . . . Treads 18 | . 28 24 33 4 33 36 35 . . . . . . . 5 . . . . . Leg 3 | . . 6 . 30 2 . . . . . . . . . . . . . . . Hover 2 | . . . . . . . . 14 20 20 6 6 6 6 . . . . . . Flight 5 | . . . . . . . . 20 20 15 20 24 26 26 20 11 5 5 5 6 Device 7 | . 11 9 11 6 . . . 16 20 17 13 13 13 13 8 6 . . . . Storage 6 | . 14 11 11 9 9 9 9 . . . . . . . . . . . . . Processor 3 | . . . . . . . . 4 6 6 6 6 6 6 11 15 17 19 23 17 Hackware 11 | . . . . 10 18 18 18 13 13 15 20 20 20 20 15 9 11 13 17 9 Protection 5 | . . 9 11 9 9 9 8 . . . . . . . . . . . . . Energy Gun 5 | . 15 3 . 2 9 9 9 6 3 5 . . . . . . . . . . Energy Cannon 4 | . 2 11 22 13 . . . . . . . . . . . . . . . . Ballistic Gun 1 | . 10 . . 2 4 . . . . . . . . . . . . . . . Ballistic Cannon 2 | . . 6 . . 3 9 8 . . . . . . . . . . . . 1 Slashing Weapon 1 | . . . . . . . . 6 6 6 6 6 6 6 4 . . . . . Peak Build Rating 83 | 7 11 18 19 36 38 32 34 59 59 75 64 72 72 74 83 54 40 44 44 59 Average Rating 35 | 5 9 15 18 31 32 29 29 50 58 70 63 70 72 72 71 41 31 34 44 45 On Entrance 40 | . 7 10 18 19 36 32 28 34 59 57 65 63 72 72 74 39 40 29 44 44 Naked Turns . | . . . . . . . . . . . . . . . . . . . . . Heaviest Build 46 | 12 28 42 42 46 45 39 39 17 17 17 9 15 10 10 15 10 6 . . 10 Greatest Support 88 | 40 40 60 60 62 88 88 84 37 23 67 27 33 33 33 33 10 10 5 5 60 Greatest Overweight (x) 2 | . . 2 . 2 1 . . . . 1 . . . . . . . . . . Average Overweight (x) . | . . . . . . . . . . . . . . . . . . . . . Largest Inventory Capacity 15 | 8 15 15 15 15 15 15 15 5 5 5 5 5 5 5 5 5 5 5 5 5 Average Capacity 10 | 7 9 15 15 15 15 15 14 5 5 5 5 5 5 5 5 5 5 5 5 5 Most Carried 15 | 5 15 15 15 15 15 15 15 5 5 5 5 5 5 5 5 5 5 5 5 5 Average Carried 10 | 3 8 14 14 14 14 15 14 4 5 4 4 5 5 5 4 4 4 4 5 4 Final Capacity 15 | 8 15 15 15 15 15 15 5 5 5 5 5 5 5 5 5 5 5 5 5 5 Final Carried 15 | 5 15 15 15 15 15 15 5 5 5 5 5 5 5 5 5 5 5 5 5 3 Class Distribution -------------------- 38% | Scavenger-Mutant 27% | Hacker-Mutant 15% | Mutant 10% | Hacker-Sprinter 8% | Hacker-Scout Dominant Class ---------------- Mutant | -10/Materials Scavenger-Mutant | -9/Materials Scavenger-Mutant | -9/Mines Scavenger-Mutant | -8/Materials Hacker-Mutant | -8/Storage Hacker-Mutant | -8/Recycling Scavenger-Mutant | -8/Scraptown Hacker-Sprinter | -6/Factory Hacker-Sprinter | -6/Waste Hacker-Mutant | -6/Factory Hacker-Scout | -6/Lower Caves Hacker-Scout | -6/Lower Caves Hacker-Scout | -6/Data Miner Hacker-Scout | -5/Proximity Caves Hacker-Mutant | -5/Factory Hacker-Sprinter | -5/Upper Caves Hacker-Mutant | -5/Upper Caves Hacker-Mutant | -5/Zhirov Hacker-Mutant | -4/Proximity Caves Hacker-Mutant | -4/Factory Resources | -11 -10 -9 -9 -8 -8 -8 -8 -6 -6 -6 -6 -6 -6 -5 -5 -5 -5 -5 -4 -4 ----------- Run | Yrd Mat Mat Min Mat Sto Rec Scr Fac Was Fac Low Low Dat Pro Fac Upp Upp Zhi Pro Fac Matter Collected 3115 | 281 130 570 20 193 460 28 . 155 . 307 10 88 . . 438 86 174 . 91 84 Remotely . | . . . . . . . . . . . . . . . . . . . . . Salvage Created 5475 | 161 650 1400 252 783 820 102 . 253 . 106 . . . . 721 38 . . . 189 Parts 334 | 12 40 78 19 44 52 9 . 9 . 19 . . . . 37 6 . . . 9 Haulers Intercepted 14 | . 2 6 . 2 3 . . 1 . . . . . . . . . . . . Recyclers Shooed 9 | . 2 1 . 2 . . . 1 . . . . . . 3 . . . . . Parts Field Recycled . | . . . . . . . . . . . . . . . . . . . . . Retrieved Matter . | . . . . . . . . . . . . . . . . . . . . . Parts Self-Destructed 3 | . . . . . . . . . . . . . . . . 3 . . . . Prevented . | . . . . . . . . . . . . . . . . . . . . . Kills | -11 -10 -9 -9 -8 -8 -8 -8 -6 -6 -6 -6 -6 -6 -5 -5 -5 -5 -5 -4 -4 ------- Run | Yrd Mat Mat Min Mat Sto Rec Scr Fac Was Fac Low Low Dat Pro Fac Upp Upp Zhi Pro Fac Combat Hostiles Destroyed 98 | . 9 24 8 19 18 2 . . . 3 . . . . 5 5 . . . 5 Melee 2 | . . . . . . . . . . 1 . . . . 1 . . . . . Guns 25 | . 7 3 . 5 8 2 . . . . . . . . . . . . . . Cannons 41 | . 2 19 8 9 3 . . . . . . . . . . . . . . . AOE 29 | . . 2 . 4 7 . . . . 2 . . . . 4 5 . . . 5 Classes Destroyed 17 | 2 5 5 . 1 . . . . . 2 . . . . 1 . . . . 1 Worker 5 | . . 2 . . 1 . . 1 . . . . . . 1 . . . . . Builder 6 | . 1 . 1 . 1 . . . . 1 . . . . 2 . . . . . Tunneler 7 | 3 . . 1 . . . . . . . . . . . 3 . . . . . Hauler 14 | . 2 6 . 2 3 . . 1 . . . . . . . . . . . . Recycler 14 | 1 2 4 2 2 . . . 1 . . . . . . 2 . . . . . Mechanic 1 | . . 1 . . . . . . . . . . . . . . . . . . Operator 6 | . . 2 . 2 1 . . . . 1 . . . . . . . . . . Watcher 7 | . 2 2 . . 1 . . . . . . . . . 2 . . . . . Swarmer 39 | . 3 10 8 10 . . . . . . . . . . . 5 . . . 3 Cutter 2 | . . . . . . . . . . 2 . . . . . . . . . . Grunt 33 | . 6 9 . 4 10 . . . . . . . . . 3 . . . . 1 Brawler 1 | . . . . . . . . . . . . . . . . . . . . 1 Duelist 1 | . . 1 . . . . . . . . . . . . . . . . . . Sentry 18 | . . 4 . 4 8 2 . . . . . . . . . . . . . . Hunter 1 | . . . . 1 . . . . . . . . . . . . . . . . Programmer 3 | . . . . . . . . . . 1 . . . . 2 . . . . . Scrapoid 2 | . . . . . . . . . . . . . . . 2 . . . . . Best Kill Streak 13 | 3 3 13 5 9 9 1 . 2 . 3 . . . . 9 5 . . . 5 Combat Bots Only 6 | . 3 4 4 6 6 1 . . . 2 . . . . 4 5 . . . 5 Max Kills in Single Turn 4 | 1 1 2 2 3 3 1 . 1 . 2 . . . . 4 2 . . . 3 Gunslinging . | . . . . . . . . . . . . . . . . . . . . . Exploded 3 | . . 1 . 3 3 . . . . 2 . . . . 2 2 . . . 3 Melee 1 | . . . . . . . . . . 1 . . . . 1 . . . . . Uniques/NPCs Destroyed . | . . . . . . . . . . . . . . . . . . . . . Combat | -11 -10 -9 -9 -8 -8 -8 -8 -6 -6 -6 -6 -6 -6 -5 -5 -5 -5 -5 -4 -4 -------- Run | Yrd Mat Mat Min Mat Sto Rec Scr Fac Was Fac Low Low Dat Pro Fac Upp Upp Zhi Pro Fac Hostile Shots Fired 819 | . 91 136 23 82 49 . . 10 . 45 3 5 . 3 123 16 37 . 17 179 Missed 321 | . 34 31 8 15 17 . . 8 . 22 2 4 . 3 61 6 15 . 10 85 Damage Taken 7905 | . 692 1150 159 938 558 . . 52 . 451 18 23 . . 1210 217 368 . 113 1956 Core 2321 | . 199 165 21 41 45 . . 18 . 155 . . . . 198 40 185 . 94 1160 Absorbed by Shields . | . . . . . . . . . . . . . . . . . . . . . Core Remaining (%) 64 | 100 20 . 53 . . . 84 . . . . . . 79 . . . . 48 . Volleys Fired 342 | 11 59 114 21 56 43 2 . . 8 1 . 2 . . 7 8 4 . . 6 Largest 2 | 2 2 2 2 2 2 2 . . 1 1 . 1 . . 1 1 1 . . 1 Hottest 148 | 60 100 136 136 148 119 119 . . 33 39 . 39 . . 39 39 39 . . 65 Shots Fired 578 | 22 101 188 42 109 76 4 . . 8 1 . 2 . . 7 8 4 . . 6 Gun 221 | 22 84 39 . 18 56 2 . . . . . . . . . . . . . . Cannon 310 | . 16 144 42 88 14 2 . . . . . . . . . . . . . 4 Launcher 46 | . . 5 . 3 6 . . . 8 1 . 2 . . 7 8 4 . . 2 Special 1 | . 1 . . . . . . . . . . . . . . . . . . . Kinetic 154 | 11 30 66 . 4 37 2 . . . . . . . . . . . . . 4 Thermal 321 | . 25 117 42 102 33 2 . . . . . . . . . . . . . . Explosive 46 | . . 5 . 3 6 . . . 8 1 . 2 . . 7 8 4 . . 2 Electromagnetic 57 | 11 46 . . . . . . . . . . . . . . . . . . . Robot Hit Streak 18 | 8 11 8 6 8 8 9 . . . 10 . . . . 17 18 . . . 2 Robot Miss Streak 6 | 1 6 5 3 3 4 . . . . . . . . . . 1 . . . 2 Penetration Max . | . . . . . . . . . . . . . . . . . . . . . Secondary Targets 3 | . 1 . . 1 1 . . . . . . . . . . . . . . . Max Gunslinging Chain 1 | . 1 . . 1 1 . . . . . . . . . . . . . . . Shots Hit Robots 361 | 17 53 100 23 70 53 2 . 11 . 6 . . . . 20 3 . . . 3 Core Hits 237 | 7 24 50 12 38 50 4 . 2 . 5 . . . . 32 8 . . . 5 Critical Kills . | . . . . . . . . . . . . . . . . . . . . . Critical Parts Destroyed . | . . . . . . . . . . . . . . . . . . . . . Critical Strikes 6 | . 1 3 . . . . . 1 . . . . . . 1 . . . . . Blast 3 | . . 3 . . . . . . . . . . . . . . . . . . Corrupt 1 | . 1 . . . . . . . . . . . . . . . . . . . Sever 2 | . . . . . . . . 1 . . . . . . 1 . . . . . Melee Attacks 74 | . . 1 . . 4 . . 17 . 21 . 1 . 3 23 3 . . . 1 Impact . | . . . . . . . . . . . . . . . . . . . . . Slashing 61 | . . 1 . . 4 . . 17 . 21 . 1 . 2 12 3 . . . . Piercing 13 | . . . . . . . . . . . . . . 1 11 . . . . 1 Sneak Attacks 11 | . . . . . . . . 4 . 3 . . . . 4 . . . . . Combat Hostiles 1 | . . . . . . . . 1 . . . . . . . . . . . . Follow-up Attacks . | . . . . . . . . . . . . . . . . . . . . . Damage Inflicted 11716 | 201 960 2158 540 2092 2185 58 . 534 . 394 . . . . 1600 554 . . . 440 Guns 2181 | 201 537 307 . 247 831 58 . . . . . . . . . . . . . . Cannons 3930 | . 284 1685 491 1237 191 . . . . . . . . . . . . . . 42 Explosions 4239 | . 139 166 49 608 1163 . . . . 103 . . . . 1062 554 . . . 395 Melee 1363 | . . . . . . . . 534 . 291 . . . . 538 . . . . . Ramming 3 | . . . . . . . . . . . . . . . . . . . . 3 Kinetic 1495 | 65 148 827 . 22 391 . . . . . . . . . . . . . . 42 Thermal 4114 | . 258 1165 540 1462 631 58 . . . . . . . . . . . . . . Explosive 4051 | . . 166 . 608 1163 . . . . 103 . . . . 1062 554 . . . 395 Electromagnetic 690 | 136 554 . . . . . . . . . . . . . . . . . . . Impact . | . . . . . . . . . . . . . . . . . . . . . Slashing 983 | . . . . . . . . 534 . 291 . . . . 158 . . . . . Piercing 380 | . . . . . . . . . . . . . . . 380 . . . . . Highest Corruption 10 | . 1 1 1 . . . . . . 1 1 1 1 1 5 5 7 7 7 10 Average Corruption 2 | . 1 1 1 . . . . . . 1 1 1 1 1 1 5 6 7 7 5 Corruption Purged . | . . . . . . . . . . . . . . . . . . . . . Corruption Blocked . | . . . . . . . . . . . . . . . . . . . . . Effects 49 | . 3 6 5 . . . . . . 1 . 1 . . 6 11 8 2 3 3 Message Errors 15 | . 1 3 2 . . . . . . 1 . . . . 1 2 2 1 2 . Matter Fused 11 | . 2 . . . . . . . . . . 1 . . 1 3 3 . . 1 Heat Flow Errors 4 | . . 1 . . . . . . . . . . . . . 3 . . . . Energy Discharges 5 | . . 1 . . . . . . . . . . . . . 2 . . 1 1 Parts Rejected 1 | . . . 1 . . . . . . . . . . . . . . . . . Parts Fused 1 | . . . . . . . . . . . . . . . . 1 . . . . Data Loss (minor) 9 | . . . 2 . . . . . . . . . . . 2 . 3 1 . 1 Data Loss (major) 1 | . . 1 . . . . . . . . . . . . . . . . . . Alerts 2 | . . . . . . . . . . . . . . . 2 . . . . . Overload Shots . | . . . . . . . . . . . . . . . . . . . . . Overflow Damage 247 | . . 7 11 15 . . . 86 . 30 . . . . 98 . . . . . Projectiles 24 | . . 7 2 15 . . . . . . . . . . . . . . . . Explosions 63 | . . . 9 . . . . . . . . . . . 54 . . . . . Melee 160 | . . . . . . . . 86 . 30 . . . . 44 . . . . . Knockbacks 2 | . . 2 . . . . . . . . . . . . . . . . . . Impact . | . . . . . . . . . . . . . . . . . . . . . Kinetic 2 | . . 2 . . . . . . . . . . . . . . . . . . Secondary . | . . . . . . . . . . . . . . . . . . . . . Self-Inflicted Damage 222 | . . . 41 5 86 . . . . 60 . . . . 13 16 . . . 1 Shots 8 | . . . 1 1 3 . . . . 1 . . . . 1 1 . . . . Rammed 1 | . . . . . . . . . . . . . . . . . . . . 1 Targets Rammed 1 | . . . . . . . . . . . . . . . . . . . . 1 Kicked . | . . . . . . . . . . . . . . . . . . . . . Crushed . | . . . . . . . . . . . . . . . . . . . . . Highest Temperature 444 | 40 158 315 270 356 444 51 . . . . . 11 . . 11 270 . . . 19 Average Temperature 88 | 19 56 89 102 102 111 29 . . . . . 9 . . 6 122 . . . 19 Received Heat Transfer 1791 | . 333 414 . 306 261 . . . . 21 9 . . . 261 . . . 9 177 Effects 3 | . . 1 1 . 1 . . . . . . . . . . . . . . . Shutdowns 1 | . . . . . 1 . . . . . . . . . . . . . . . Energy Bleed 1 | . . . 1 . . . . . . . . . . . . . . . . . Interference 1 | . . 1 . . . . . . . . . . . . . . . . . . Siege Activations . | . . . . . . . . . . . . . . . . . . . . . Robots Corrupted . | . . . . . . . . . . . . . . . . . . . . . Combat Hostiles . | . . . . . . . . . . . . . . . . . . . . . Parts Fried 2 | . 2 . . . . . . . . . . . . . . . . . . . Impact Corruptions . | . . . . . . . . . . . . . . . . . . . . . Robots Melted 1 | . . . . 1 . . . . . . . . . . . . . . . . Combat Hostiles 1 | . . . . 1 . . . . . . . . . . . . . . . . Parts Melted 15 | . 2 6 1 6 . . . . . . . . . . . . . . . . Heat Transferred 7663 | . 425 2192 938 2658 1325 125 . . . . . . . . . . . . . . Parts Sabotaged . | . . . . . . . . . . . . . . . . . . . . . Parts Stolen . | . . . . . . . . . . . . . . . . . . . . . Parts Stripped . | . . . . . . . . . . . . . . . . . . . . . Power Chain Reactions 2 | . 2 . . . . . . . . . . . . . . . . . . . Alert | -11 -10 -9 -9 -8 -8 -8 -8 -6 -6 -6 -6 -6 -6 -5 -5 -5 -5 -5 -4 -4 ------- Run | Yrd Mat Mat Min Mat Sto Rec Scr Fac Was Fac Low Low Dat Pro Fac Upp Upp Zhi Pro Fac Peak Influence 502 | 20 252 502 315 324 419 144 . 140 89 278 . . . . 359 . . . . 495 Initial 195 | . 13 33 195 83 37 124 . . 49 62 . . . . 28 . . . . 18 Average 149 | 8 80 288 207 142 175 30 . 53 56 139 . . . . 82 . . . . 182 Maximum Alert Level 2 | . 1 2 1 1 2 . . . . 1 . . . . 1 . . . . 2 Low Security (%) 69 | 100 90 27 63 69 62 100 . 100 100 66 . . . . 91 . . . . 63 Level 1 25 | . 9 53 36 30 33 . . . . 33 . . . . 8 . . . . 12 Level 2 4 | . . 18 . . 3 . . . . . . . . . . . . . . 23 Level 3 . | . . . . . . . . . . . . . . . . . . . . . Level 4 . | . . . . . . . . . . . . . . . . . . . . . Level 5 . | . . . . . . . . . . . . . . . . . . . . . High Security . | . . . . . . . . . . . . . . . . . . . . . Max Security . | . . . . . . . . . . . . . . . . . . . . . Squads Dispatched 27 | . 1 2 1 . . . . 3 . 9 . . . . 5 . 1 . . 5 Investigation 13 | . . . 1 . . . . 2 . 6 . . . . 3 . . . . 1 Extermination 1 | . . . . . . . . . . . . . . . 1 . . . . . Reinforcement 12 | . 1 2 . . . . . 1 . 3 . . . . 1 . . . . 4 Assault 1 | . . . . . . . . . . . . . . . . . 1 . . . Garrison . | . . . . . . . . . . . . . . . . . . . . . Intercept . | . . . . . . . . . . . . . . . . . . . . . Searches Triggered 1 | . . . . . . . . . . . . . . . . . . . . 1 Data Miner Redirects 1 | . . . . . . . . . . . . . . . 1 . . . . . Construction Impeded 2 | . . . . . . . . . . . . . . . 1 . . . . 1 Haulers Reinforced 1 | . . . . . . . . 1 . . . . . . . . . . . . Active Scanning Responses . | . . . . . . . . . . . . . . . . . . . . . Cargo Convoy Interrupts . | . . . . . . . . . . . . . . . . . . . . . Stealth | -11 -10 -9 -9 -8 -8 -8 -8 -6 -6 -6 -6 -6 -6 -5 -5 -5 -5 -5 -4 -4 --------- Run | Yrd Mat Mat Min Mat Sto Rec Scr Fac Was Fac Low Low Dat Pro Fac Upp Upp Zhi Pro Fac Distress Signals 15 | . 2 4 1 1 4 . . . . . . . . . 1 . . . . 2 Communications Jammed . | . . . . . . . . . . . . . . . . . . . . . Distress Signals . | . . . . . . . . . . . . . . . . . . . . . Times Spotted 260 | . 17 39 8 33 19 . . 9 4 28 3 4 . 5 29 7 6 . 3 46 Peak Tracking Total 14 | . 7 5 4 6 5 . . 7 4 13 3 4 . 7 9 6 13 . 3 14 Tactical Retreats 30 | . 2 . . . . . . 1 . 6 1 2 . 1 5 1 4 . 1 6 Traps | -11 -10 -9 -9 -8 -8 -8 -8 -6 -6 -6 -6 -6 -6 -5 -5 -5 -5 -5 -4 -4 ------- Run | Yrd Mat Mat Min Mat Sto Rec Scr Fac Was Fac Low Low Dat Pro Fac Upp Upp Zhi Pro Fac Traps Triggered 9 | . 2 2 . . . . . 2 . 1 . . . . . 1 . . . 1 Indirectly . | . . . . . . . . . . . . . . . . . . . . . Trap Hack Attempts . | . . . . . . . . . . . . . . . . . . . . . Triggered . | . . . . . . . . . . . . . . . . . . . . . Disarmed . | . . . . . . . . . . . . . . . . . . . . . Reprogrammed . | . . . . . . . . . . . . . . . . . . . . . Reused . | . . . . . . . . . . . . . . . . . . . . . Traps Extracted . | . . . . . . . . . . . . . . . . . . . . . Installed . | . . . . . . . . . . . . . . . . . . . . . Triggered 1 | . . . . . . . . . . . . . . 1 . . . . . . Machines | -11 -10 -9 -9 -8 -8 -8 -8 -6 -6 -6 -6 -6 -6 -5 -5 -5 -5 -5 -4 -4 ---------- Run | Yrd Mat Mat Min Mat Sto Rec Scr Fac Was Fac Low Low Dat Pro Fac Upp Upp Zhi Pro Fac Machines Disabled 14 | . 1 4 1 2 5 . . 1 . . . . . . . . . . . . Max in Single Turn 1 | . 1 1 1 1 1 . . 1 . . . . . . . . . . . . Garrison Access 1 | . . . . . . . . . . 1 . . . . . . . . . . Machines Repaired . | . . . . . . . . . . . . . . . . . . . . . Machines Dismantled . | . . . . . . . . . . . . . . . . . . . . . Machines Sabotaged . | . . . . . . . . . . . . . . . . . . . . . Overloaded Fab Kills . | . . . . . . . . . . . . . . . . . . . . . Hacking | -11 -10 -9 -9 -8 -8 -8 -8 -6 -6 -6 -6 -6 -6 -5 -5 -5 -5 -5 -4 -4 --------- Run | Yrd Mat Mat Min Mat Sto Rec Scr Fac Was Fac Low Low Dat Pro Fac Upp Upp Zhi Pro Fac Machines Accessed 79 | . 6 5 1 7 8 6 2 5 . 17 . 1 4 . 6 2 1 5 . 3 Terminals 46 | . 5 5 . 6 8 3 . 2 . 10 . . . . 3 1 . . . 3 Fabricators 4 | . . . . . . . . . . 3 . . . . 1 . . . . . Repair Stations . | . . . . . . . . . . . . . . . . . . . . . Recycling Units 12 | . 1 . . 1 . 3 . 2 . 3 . . . . 2 . . . . . Scanalyzers 1 | . . . . . . . . 1 . . . . . . . . . . . . Garrison Access 1 | . . . . . . . . . . 1 . . . . . . . . . . Total Hacks 241 | . 16 12 1 30 15 10 10 14 . 56 . 1 31 . 18 2 1 18 . 6 Successful 169 | . 8 6 1 19 9 8 10 12 . 28 . 1 31 . 14 2 1 18 . 1 Failed 72 | . 8 6 . 11 6 2 . 2 . 28 . . . . 4 . . . . 5 Catastrophic 12 | . . 1 . . 1 . . . . 6 . . . . 1 . . . . 3 Database Lockouts . | . . . . . . . . . . . . . . . . . . . . . Manual 69 | . 6 3 . 22 3 1 . 4 . 14 . . . . 14 . . . . 2 Terminals 139 | . 15 12 . 28 15 7 . 4 . 39 . . . . 12 1 . . . 6 Fabricators 15 | . . . . . . . . . . 12 . . . . 3 . . . . . Repair Stations . | . . . . . . . . . . . . . . . . . . . . . Recycling Units 16 | . 1 . . 2 . 3 . 3 . 4 . . . . 3 . . . . . Scanalyzers 7 | . . . . . . . . 7 . . . . . . . . . . . . Garrison Access 1 | . . . . . . . . . . 1 . . . . . . . . . . Terminal Hacks 128 | . 6 6 1 13 9 5 10 2 . 16 . 1 31 . 6 2 1 18 . 1 Record 28 | . . . . . . . 10 . . . . . 11 . . 1 . 6 . . Part Schematic 21 | . . . . 2 . . . . . 3 . . 12 . . . . 4 . . Robot Schematic 6 | . . . . . . 1 . . . . . . 5 . . . . . . . Robot Analysis 8 | . 1 1 . 2 . . . . . . . . . . . . . 4 . . Prototype ID Bank 12 | . 2 . . . . 1 . . . 2 . . 3 . . . . 4 . . Open Door 9 | . . . 1 . 5 . . . . . . 1 . . . 1 1 . . . Branch Access Points 4 | . . 1 . 1 . . . . . 1 . . . . 1 . . . . . Terminal Index 4 | . . . . 1 . . . 1 . 1 . . . . 1 . . . . . Fabricator Index 1 | . . . . . . . . . . . . . . . 1 . . . . . Alert Level 5 | . . 1 . 1 1 1 . . . 1 . . . . . . . . . . Unreport Threat 7 | . . . . 2 2 2 . . . . . . . . 1 . . . . . Locate Traps 12 | . . 1 . 3 . . . 1 . 4 . . . . 2 . . . . 1 Transport Status 1 | . . . . . . . . . . 1 . . . . . . . . . . Recall Reinforcements 1 | . . . . . . . . . . 1 . . . . . . . . . . Hauler Manifests 3 | . . . . 1 1 . . . . 1 . . . . . . . . . . Zone Layout 6 | . 3 2 . . . . . . . 1 . . . . . . . . . . Fabricator Hacks 8 | . . . . . . . . . . 6 . . . . 2 . . . . . Network Status 1 | . . . . . . . . . . 1 . . . . . . . . . . Load Schematic 3 | . . . . . . . . . . 2 . . . . 1 . . . . . Build 4 | . . . . . . . . . . 3 . . . . 1 . . . . . Repair Station Hacks . | . . . . . . . . . . . . . . . . . . . . . Recycling Unit Hacks 7 | . 1 . . 2 . 3 . 1 . . . . . . . . . . . . Report Inventory 6 | . 1 . . 1 . 3 . 1 . . . . . . . . . . . . Retrieve Components 1 | . . . . 1 . . . . . . . . . . . . . . . . Scanalyzer 7 | . . . . . . . . 7 . . . . . . . . . . . . Insert Component 3 | . . . . . . . . 3 . . . . . . . . . . . . Analyze 4 | . . . . . . . . 4 . . . . . . . . . . . . Garrison Access Hacks 1 | . . . . . . . . . . 1 . . . . . . . . . . Seal Access 1 | . . . . . . . . . . 1 . . . . . . . . . . Unauthorized Hacks 18 | . 1 . . 4 . . . 2 . 5 . . . . 6 . . . . . Terminals 8 | . 1 . . 4 . . . . . . . . . . 3 . . . . . Botnet 6 | . 1 . . 3 . . . . . . . . . . 2 . . . . . Operators 2 | . . . . 1 . . . . . . . . . . 1 . . . . . Fabricators 3 | . . . . . . . . . . 2 . . . . 1 . . . . . Prioritize 3 | . . . . . . . . . . 2 . . . . 1 . . . . . Repair Stations 7 | . . . . . . . . 2 . 3 . . . . 2 . . . . . Recycling Units . | . . . . . . . . . . . . . . . . . . . . . Fedlink 5 | . . . . . . . . 2 . 2 . . . . 1 . . . . . Scrapoids 2 | . . . . . . . . . . 1 . . . . 1 . . . . . Scanalyzers . | . . . . . . . . . . . . . . . . . . . . . Garrison Access . | . . . . . . . . . . . . . . . . . . . . . Data Cores Recovered 1 | . . . . 1 . . . . . . . . . . . . . . . . Used . | . . . . . . . . . . . . . . . . . . . . . Hacking Detections 48 | . 6 4 . 6 4 3 . 4 . 13 . . . . 4 1 . . . 3 Full Trace Events 5 | . . . . . . . . . . 3 . . . . 1 . . . . 1 Feedback Events . | . . . . . . . . . . . . . . . . . . . . . Feedback Blocked . | . . . . . . . . . . . . . . . . . . . . . Robot Schematics Acquired 6 | . . . . . . 1 . . . . . . 5 . . . . . . . Robots Built . | . . . . . . . . . . . . . . . . . . . . . Authchips . | . . . . . . . . . . . . . . . . . . . . . Time . | . . . . . . . . . . . . . . . . . . . . . Total Robot Build Rating . | . . . . . . . . . . . . . . . . . . . . . Part Schematics Acquired 24 | . . . . 2 . . . 3 . 3 . . 12 . . . . 4 . . Parts Built 3 | . . . . . . . . . . 2 . . . . 1 . . . . . Authchips . | . . . . . . . . . . . . . . . . . . . . . Time 250 | . . . . . . . . . . 228 . . . . 22 . . . . . Total Part Build Rating 16 | . . . . . . . . . . 12 . . . . 4 . . . . . Parts Repaired . | . . . . . . . . . . . . . . . . . . . . . Time . | . . . . . . . . . . . . . . . . . . . . . Parts Recycled . | . . . . . . . . . . . . . . . . . . . . . Recycled Matter . | . . . . . . . . . . . . . . . . . . . . . Retrieved Matter . | . . . . . . . . . . . . . . . . . . . . . Retrieved Components 8 | . . . . 8 . . . . . . . . . . . . . . . . Parts Scanalyzed 3 | . . . . . . . . 3 . . . . . . . . . . . . Part Schematics Acquired 3 | . . . . . . . . 3 . . . . . . . . . . . . Parts Damaged 1 | . . . . . . . . 1 . . . . . . . . . . . . Bothacking | -11 -10 -9 -9 -8 -8 -8 -8 -6 -6 -6 -6 -6 -6 -5 -5 -5 -5 -5 -4 -4 ------------ Run | Yrd Mat Mat Min Mat Sto Rec Scr Fac Was Fac Low Low Dat Pro Fac Upp Upp Zhi Pro Fac Used RIF Installer . | . . . . . . . . . . . . . . . . . . . . . Robots Hacked . | . . . . . . . . . . . . . . . . . . . . . Non-combat . | . . . . . . . . . . . . . . . . . . . . . Combat . | . . . . . . . . . . . . . . . . . . . . . Robot Hacks Applied . | . . . . . . . . . . . . . . . . . . . . . Relay Couplers Released . | . . . . . . . . . . . . . . . . . . . . . Fabnet Peak Effective % . | . . . . . . . . . . . . . . . . . . . . . Robots Rewired . | . . . . . . . . . . . . . . . . . . . . . Allies Hacked 1 | . . . . . . . . . . . . . . . 1 . . . . . Hacks Repelled . | . . . . . . . . . . . . . . . . . . . . . Allies | -11 -10 -9 -9 -8 -8 -8 -8 -6 -6 -6 -6 -6 -6 -5 -5 -5 -5 -5 -4 -4 -------- Run | Yrd Mat Mat Min Mat Sto Rec Scr Fac Was Fac Low Low Dat Pro Fac Upp Upp Zhi Pro Fac Total Allies 10 | . . . . . . . . . . 5 . . . . 5 . . . . . Largest Group 5 | . . . . . . . . . . 5 . . . . 5 . . . . . Highest-Rated Group 238 | . . . . . . . . . . 143 . . . . 238 . . . . . Highest-Rated Ally 50 | . . . . . . . . . . 31 . . . . 50 . . . . . Total Orders . | . . . . . . . . . . . . . . . . . . . . . Ally Attacks 64 | . . . . . . . . . . 24 . . . . 40 . . . . . Total Damage 1429 | . . . . . . . . . . 485 . . . . 944 . . . . . Kills 8 | . . . . . . . . . . 2 . . . . 6 . . . . . Allies Corrupted . | . . . . . . . . . . . . . . . . . . . . . Allies Melted . | . . . . . . . . . . . . . . . . . . . . . Intel | -11 -10 -9 -9 -8 -8 -8 -8 -6 -6 -6 -6 -6 -6 -5 -5 -5 -5 -5 -4 -4 ------- Run | Yrd Mat Mat Min Mat Sto Rec Scr Fac Was Fac Low Low Dat Pro Fac Upp Upp Zhi Pro Fac Robot Analysis Total 8 | . 1 1 . 2 . . . . . . . . . . . . . 4 . . Derelict Logs Recovered 7 | . . . 2 . . . . . . . 1 . . 1 . 3 . . . . Drone Launches . | . . . . . . . . . . . . . . . . . . . . . Drone Recoveries . | . . . . . . . . . . . . . . . . . . . . . Exploration | -11 -10 -9 -9 -8 -8 -8 -8 -6 -6 -6 -6 -6 -6 -5 -5 -5 -5 -5 -4 -4 ------------- Run | Yrd Mat Mat Min Mat Sto Rec Scr Fac Was Fac Low Low Dat Pro Fac Upp Upp Zhi Pro Fac Turns Passed 10498 | 116 1038 1169 750 907 773 456 1604 260 156 890 245 314 26 158 617 343 249 53 111 263 Spaces Moved 9888 | 42 498 477 417 479 403 298 1036 598 126 1349 412 278 83 287 862 665 616 138 299 525 Core 116 | 4 . . . . . . . . . . . . . . . . . . . 112 Treads 3098 | 38 498 411 417 18 383 298 1028 5 . . . . . . . . . . . 2 Legs 547 | . . 66 . 461 20 . . . . . . . . . . . . . . . Wheels . | . . . . . . . . . . . . . . . . . . . . . Hover 530 | . . . . . . . . . . 530 . . . . . . . . . . Flight 5597 | . . . . . . . 8 593 126 819 412 278 83 287 862 665 616 138 299 411 Fastest Speed 26 | 50 160 120 160 122 145 145 27 27 30 26 34 31 31 31 29 32 32 35 35 34 Average Speed 79 | 149 160 161 160 137 151 149 152 30 30 35 34 31 31 31 50 35 37 35 35 40 Slowest Speed 260 | 160 160 260 160 260 232 152 158 160 30 110 34 34 31 31 54 52 55 35 35 160 Overloaded Moves 33 | . . . . . . . . . . 33 . . . . . . . . . . Propulsion Burnouts . | . . . . . . . . . . . . . . . . . . . . . Robots Hopped 39 | . . . . . . . . 8 2 2 . . . . 15 . 2 . . 10 Cave-ins Triggered . | . . . . . . . . . . . . . . . . . . . . . Teleports 1 | . . . . . . . . . . . . . . . . . . . . 1 Exploration Rate (%) 55 | 3 75 49 93 45 63 64 84 17 74 53 66 49 69 49 23 77 77 62 53 21 Regions Visited 20 Branch Regions 12 Pre-discovered Areas 8 | . . . 2 . . . . . . . . . 1 . . 2 . 3 . . Known Exits Taken 8 | . . 1 . 1 . . . . . 1 . . . . 1 1 1 1 1 . Unknown Exits Taken 10 | 1 1 . 1 . 1 1 1 . . . 1 1 1 1 . . . . . . Scrap Searched 25 | . . . 1 . . . 6 . . . 7 3 . 2 . 3 1 . 2 . Spaces Dug 239 | . 1 1 . . . . . 3 75 15 . 21 . 2 3 62 56 . . . Terrain Destroyed 558 | . 4 16 4 13 71 . . 3 88 21 . 39 . 2 81 120 76 . . 20 Melee 28 | . . 1 . . . . . 3 . 15 . 1 . 2 3 3 . . . . Projectile 5 | . 1 . . . 1 . . . . . . . . . . . . . . 3 AOE 525 | . 3 15 4 13 70 . . . 88 6 . 38 . . 78 117 76 . . 17 Terrain Rammed . | . . . . . . . . . . . . . . . . . . . . . Walls Destroyed . | . . . . . . . . . . . . . . . . . . . . . Machines Disabled . | . . . . . . . . . . . . . . . . . . . . . Actions | -11 -10 -9 -9 -8 -8 -8 -8 -6 -6 -6 -6 -6 -6 -5 -5 -5 -5 -5 -4 -4 --------- Run | Yrd Mat Mat Min Mat Sto Rec Scr Fac Was Fac Low Low Dat Pro Fac Upp Upp Zhi Pro Fac Total 11758 | 72 642 688 460 619 487 303 1063 641 232 1721 516 498 82 352 995 760 629 141 304 553 Wait 1150 | 8 49 37 7 41 1 . . 20 100 314 102 212 . 62 94 72 7 . 6 18 Move 9798 | 41 497 476 416 478 402 297 1035 582 122 1344 411 277 82 286 835 664 611 137 298 507 Hop 32 | . . . . . . . . 8 1 2 . . . . 11 . 2 . . 8 Pick Up 62 | 5 13 17 7 6 3 . 2 3 . 2 1 . . . 1 1 . 1 . . Fast Attach 107 | 7 7 8 1 17 10 2 3 5 . 16 . 3 . 1 11 4 1 2 . 9 Attach 30 | . 3 7 . 1 1 . 6 1 . . . . . . 2 4 2 1 . 2 Detach 10 | . 2 1 . . . . . . . . . . . . 2 3 2 . . . Swap 38 | . 5 9 1 3 8 . 1 1 1 3 1 2 . . 3 . . . . . Drop 116 | . 7 18 7 17 15 2 16 4 . 18 1 1 . 1 7 1 . . . 1 Fire 342 | 11 59 114 21 56 43 2 . . 8 1 . 2 . . 7 8 4 . . 6 Melee 72 | . . 1 . . 4 . . 17 . 21 . 1 . 2 22 3 . . . 1 Ram 1 | . . . . . . . . . . . . . . . . . . . . 1 Kick . | . . . . . . . . . . . . . . . . . . . . . Crush . | . . . . . . . . . . . . . . . . . . . . . Escape Stasis . | . . . . . . . . . . . . . . . . . . . . . Rewire . | . . . . . . . . . . . . . . . . . . . . . Trap . | . . . . . . . . . . . . . . . . . . . . . Miscellaneous . | . . . . . . . . . . . . . . . . . . . . . Route ------- -11/Scrapyard -10/Materials (discovered 4 exits: *Mat x2 / [*Min x2]) -9/Materials (discovered 4 exits: *Mat x2 / *Min x2) -9/Mines (discovered 3 exits: *Mat x2 / [*Zio]) -8/Materials (discovered 4 exits: *Fac x3 / *Sto) -8/Storage (discovered 2 exits: *Fac / *Rec) -8/Recycling -8/Scraptown (discovered 2 exits: *Fac x2) -6/Factory (discovered 2 exits: *Low x2) -6/Waste -6/Factory (discovered 3 exits: *Fac / *Low x2) -6/Lower Caves -6/Lower Caves (discovered 2 exits: Fac / *Dat) -6/Data Miner -5/Proximity Caves -5/Factory (discovered 5 exits: *Fac / *Upp x2 / Ext x2) -5/Upper Caves -5/Upper Caves (discovered 2 exits: *Fac / *Zhi) -5/Zhirov -4/Proximity Caves -4/Factory (discovered 1 exit: Upp) History --------- Turn | Location | Event 35 | -11/Scrapyard | Discovered new exit (range 16) 117 | -11/Scrapyard | Entered Materials 245 | -10/Materials | Discovered new exit (range 8) 308 | -10/Materials | Build established: Mutant 357 | -10/Materials | Core integrity fell below 50% 396 | -10/Materials | Lost 4 parts (2p1u1w) 515 | -10/Materials | Discovered new exit (range 16) 590 | -10/Materials | Discovered new exit (range 14) 1048 | -10/Materials | Discovered new exit (range 16) 1155 | -10/Materials | Entered another Materials area 1155 | -9/Materials | Evolved 2 slots: Propulsion x1, Utility x1 1253 | -9/Materials | Lost 4 parts (1p2n1w) 1671 | -9/Materials | Discovered new exit (range 15) 1710 | -9/Materials | Identified exit to Mines 1767 | -9/Materials | Build established: Scavenger-Mutant 2030 | -9/Materials | Discovered new exit (range 15) 2324 | -9/Materials | Entered Mines 2348 | -9/Mines | Discovered new exit (range 9) 2525 | -9/Mines | Learned location of 1 exit from Materials 2611 | -9/Mines | A Derelict revealed a hidden shortcut to a safe place 2650 | -9/Mines | Received a Rocket Launcher from a helpful Derelict 2729 | -9/Mines | Met a Derelict shopkeep closing up shop 2738 | -9/Mines | Found Powered Armor 2772 | -9/Mines | Learned location of Zion (-7) 2856 | -9/Mines | Learned location of Storage (-8) 3037 | -9/Mines | Discovered new exit (range 9) 3074 | -9/Mines | Entered Materials 3074 | -8/Materials | Evolved 2 slots: Propulsion x1, Utility x1 3075 | -8/Materials | Identified exit to Factory 3204 | -8/Materials | Identified exit to Storage 3652 | -8/Materials | Discovered exit to Factory (range 12) 3981 | -8/Materials | Discovered exit to Factory (range 15) 3981 | -8/Materials | Entered Storage 4441 | -8/Storage | Discovered exit to Factory (range 5) 4600 | -8/Storage | Build established: Hacker-Mutant 4749 | -8/Storage | Used back door to open Recycling access 4749 | -8/Storage | Discovered new exit (range 4) 4754 | -8/Storage | Entered Recycling 5174 | -8/Recycling | Scanned before Scraplab entrance 5195 | -8/Recycling | Entered Scraplab 5207 | -8/Recycling | Discovered new exit (range 2) 5210 | -8/Recycling | Entered Scraptown 5290 | -8/Scraptown | Build established: Scavenger-Mutant 5429 | -8/Scraptown | Discovered new exit (range 13) 5534 | -8/Scraptown | Visited Spacefarers 5571 | -8/Scraptown | Visited Comm Corps 5595 | -8/Scraptown | Visited Cyclists 5615 | -8/Scraptown | Visited Red Mages 5840 | -8/Scraptown | Visited Fellowship of the Rings 5894 | -8/Scraptown | Visited Shadow of the Wyrm 5913 | -8/Scraptown | Visited SPCMW 5936 | -8/Scraptown | Visited UFD Registry 5936 | -8/Scraptown | Registered with UFD as "Microwalker" 5978 | -8/Scraptown | Visited A0-MCA Data Center 5987 | -8/Scraptown | Given an A rating by A0-MCA 5991 | -8/Scraptown | Found A0-MCA's Component Scanner 6069 | -8/Scraptown | Visited Scrap Suit Storage 6091 | -8/Scraptown | Visited Research Penetration Think Tank 6192 | -8/Scraptown | Visited Abandonware Association 6218 | -8/Scraptown | Visited Botcube Research 6249 | -8/Scraptown | Found Botcube 6293 | -8/Scraptown | Visited Curators Association 6317 | -8/Scraptown | Visited DA-N13 Charitable Foundation 6323 | -8/Scraptown | Found DCF Scrap (32 items) 6632 | -8/Scraptown | Build established: Hacker-Mutant 6780 | -8/Scraptown | Discovered new exit (range 5) 6814 | -8/Scraptown | Entered Factory 6814 | -6/Factory | Evolved 4 slots: Propulsion x2, Utility x2 6975 | -6/Factory | Discovered new exit (range 15) 7036 | -6/Factory | Discovered new exit (range 16) 7074 | -6/Factory | Sucked down chute 7074 | -6/Factory | Entered Waste 7085 | -6/Waste | Spotted C-40 Crusher 7101 | -6/Waste | Build established: Hacker-Sprinter 7125 | -6/Waste | Spotted C-40 Crusher 7173 | -6/Waste | Spotted C-40 Crusher 7200 | -6/Waste | Spotted C-40 Crusher 7223 | -6/Waste | Spotted C-40 Crusher 7226 | -6/Waste | Discovered new exit (range 12) 7230 | -6/Waste | Entered Factory 7333 | -6/Factory | Discovered new exit (range 15) 7370 | -6/Factory | Scrapoid reinforcements arrived 7426 | -6/Factory | Identified exit to Lower Caves 7430 | -6/Factory | Lost 4 allies 7793 | -6/Factory | Build established: Hacker-Mutant 7797 | -6/Factory | Fabricated Impulse Thruster Array (x1) 7921 | -6/Factory | Fabricated Cld. VTOL Module (x1) 7957 | -6/Factory | Spotted B-75 Beast 8120 | -6/Factory | Entered Lower Caves 8279 | -6/Lower Caves | Learned Factory interactive machine intel 8361 | -6/Lower Caves | Discovered new exit (range 14) 8365 | -6/Lower Caves | Entered another Lower Caves area 8380 | -6/Lower Caves | Discovered new exit (range 15) 8448 | -6/Lower Caves | Build established: Hacker-Scout 8677 | -6/Lower Caves | Discovered new exit (range 10) 8679 | -6/Lower Caves | Entered Data Miner 8679 | -6/Data Miner | Discovered new exit (range 6) 8685 | -6/Data Miner | Met Data Miner 8691 | -6/Data Miner | Learned location of Section 7 (-2) 8691 | -6/Data Miner | Acquired the access code to Warlord's prototype stash 8697 | -6/Data Miner | Received God Mode back door access code from Data Miner 8705 | -6/Data Miner | Entered Proximity Caves 8780 | -5/Proximity Caves | Learned 8 Factory zone layouts 8862 | -5/Proximity Caves | Discovered new exit (range 5) 8863 | -5/Proximity Caves | Entered Factory 8863 | -5/Factory | Evolved 2 slots: Power x1, Utility x1 8865 | -5/Factory | Loaded intel: 53 interactive machine locations 8959 | -5/Factory | Identified exit to Upper Caves 8959 | -5/Factory | Identified exit to Extension 9058 | -5/Factory | Fabricated Cld. VTOL Module (x1) 9142 | -5/Factory | Discovered new exit (range 13) 9149 | -5/Factory | Identified exit to Factory 9296 | -5/Factory | Build established: Hacker-Mutant 9396 | -5/Factory | Incoming investigation squad redirected 9402 | -5/Factory | Scrapoids reinforcements arrived? 9465 | -5/Factory | Lost 5 allies 9472 | -5/Factory | Lost 7 parts (1p2n3u1w) 9480 | -5/Factory | Entered Upper Caves 9580 | -5/Upper Caves | Lost 3 parts (1p1n1w) 9593 | -5/Upper Caves | Learned 8 Factory zone layouts 9818 | -5/Upper Caves | Discovered new exit (range 16) 9823 | -5/Upper Caves | Identified exit to Upper Caves 9823 | -5/Upper Caves | Entered another Upper Caves area 9837 | -5/Upper Caves | Discovered exit to Factory (range 13) 9897 | -5/Upper Caves | Spotted B-75 Beast 10036 | -5/Upper Caves | Attracted the attention of an 0b10 outpost 10067 | -5/Upper Caves | Discovered new exit (range 13) 10071 | -5/Upper Caves | Identified exit to Zhirov 10072 | -5/Upper Caves | Entered Zhirov 10072 | -5/Zhirov | Discovered new exit (range 3) 10079 | -5/Zhirov | Met Zhirov 10086 | -5/Zhirov | Learned location of Quarantine (-2) 10086 | -5/Zhirov | Learned location of Testing (-3) 10086 | -5/Zhirov | Learned location of Command (-1) 10092 | -5/Zhirov | Zhirov requested help retrieving the SGEMP Prototype 10098 | -5/Zhirov | Found Alien Artifact 10098 | -5/Zhirov | Identified Integrated Reactor 10098 | -5/Zhirov | Installed Integrated Reactor, increased core energy generation (+10) 10104 | -5/Zhirov | Found Alien Artifact 10124 | -5/Zhirov | Identified exit to Proximity Caves 10125 | -5/Zhirov | Entered Proximity Caves 10134 | -4/Proximity Caves | Spotted B-86 Titan 10169 | -4/Proximity Caves | Core integrity fell below 50% 10220 | -4/Proximity Caves | Discovered exit to Factory (range 9) 10236 | -4/Proximity Caves | Entered Factory 10236 | -4/Factory | Evolved 2 slots: Utility x2 10237 | -4/Factory | Identified exit to Upper Caves 10400 | -4/Factory | Core integrity fell below 50% 10404 | -4/Factory | Lost 4 parts (2n2u) 10411 | -4/Factory | Spotted B-86 Titan 10419 | -4/Factory | Identified Transdimensional Reconstructor 10419 | -4/Factory | Warped through subspace 10426 | -4/Factory | Core integrity fell below 20% 10486 | -4/Factory | Search patrols dispatched 10499 | -4/Factory | System corruption reached 10% 10499 | -4/Factory | Destroyed by H-71 Marshal with Heavy Mass Driver Last Messages --------------- 10473_ Penetrated by Slug. 10473_ Impulse Thruster destroyed. 10479_ Acquired Imp. Medium Treads. 10486_ ALERT: Heightened foreign activity detected, multiple search patrols dispatched. 10486_ Acquired Imp. Medium Treads. 10492_ Penetrated by Slug. 10492_ Slug penetrates Y-64 Sentinel. 10492_ Slug penetrates Wall. 10493_ Component scanned: EM Disruption Field [H-71 Marshal]. 10493_ Component scanned: Active Sensor Suite [H-71 Marshal]. 10494_ System corrupted: Matter fused (-5). 10494_ Slug penetrates Wall. 10496_ W-44 Eye sends out distress signal. 10496_ Carbide Saw destroyed. 10496_ Slug penetrates H-71 Marshal. 10497_ O-24 Administrator: "IFF HANDSHAKE FAILED. SECURING TERMINAL." 10498_ Component scanned: Adv. Myomer Leg. 10499_ Penetrated by Slug. 10499_ Imp. Medium Treads destroyed. Map ----- +----------------------------------------------------+ | ######## ## + #?### ##??????? | | #??????# ## """"""" # #?# ??????? | | #??????# ## """"""" # ### ??????? | | #??????# ## """"""" # ??????? | | #??????# ## """"""" # ### ??????? | | ???????# ## # #?# ??????? | | ???????# ## """"""" # #?### ##??????? | | ???????# ## """"""" # #???# #???????? | | #####??# ## """"""" # #####+##??????? | | #??#######+####### """"""" # ## ??????? | | ####### #??# # ## ??????? | | ############+### ## """??????? | | " # """??????? | | ???????? ???????????????????????????????????????? | | ???????? ???????????????????????????????????????? | | ???????? ???????????????????????????????????????? | | ????????# ???????????????????????????????????????? | | ????????# ?##############????????????????????????? | | ????????# ?# ^ #????????????????????????? | | ????????# ?# ^ """ #????????????????????????? | | ????????# ## """ #????????????????????????? | | ????????# ## ^""" #???????????###??????????? | | ????????# ## ###??????/ ##?????????? | | ???????## ########p;#####%##### ????????? | | ???????# hh p % ????????? | | ???????# Y H@ g ????????? | | ???????# p ????????? | | ???????# ############+####### ????????? | | ???????# #?????????? ????????? ##?????????? | | ???????# #?????????? ?????????????#??????????? | | ???????# #?????????= " ???????????????????????? | | ???????# #????????? " ???????????????????????? | | ???????# #???????? " "??????????????????????? | | #?????## ##???????!!! " "??????????????????????? | | ####### #?????? !!! " " ?????????????????????? | | ] #?????? !! " " ?????????????????????? | | #????? "?"??????????????????????? | | #????? ?????????????????????????? | | ##### #????# ?????????????????????????? | | #######+####???# ?????????????????????????? | | # #?????#####?????????????????????????? | | " # = #???????????????????????????????????? | | + "" #???????????????????????????????????? | | # """ "" #???????????????????????????????????? | | # """ T" #???????????????????????????????????? | | #### """ "" #???????????????????????????????????? | | ???# "" #???????????????????????????????????? | | ???# ! #???????????????????????????????????? | | ???###########???????????????????????????????????? | | ?????????????????????????????????????????????????? | +----------------------------------------------------+ Best States ------------- Heat Dissipation 54 Energy Generation 25 Energy Capacity 280 Matter Stores 300 Matter Capacity 300 Sight Range 16 Robot Scan Range 16 Terrain Scan Range 16 Terrain Scan Density 210 ECM Strength 1 Additional Mass Support 9 Armor Coverage 400 Evasion (%) 74 Armor Integrity Analysis 40 Recoil Reduction 4 Offensive Hacking 24 Defensive Hacking 12 Item Schematics ----------------- Hacking Suite | -8/Materials | Hacked Lgt. Armor Plating | -8/Materials | Hacked Rocket Launcher | -6/Factory | Scanalyzed Fusion Compressor | -6/Factory | Scanalyzed Lgt. Angular Momentum Engine | -6/Factory | Scanalyzed Cld. VTOL Module | -6/Factory | Hacked Imp. Surge Thruster | -6/Factory | Hacked Imp. Transmission Jammer | -6/Factory | Hacked Combat Drone Bay | -6/Data Miner | Free Enh. Flexi-carbon Leg | -6/Data Miner | Free Imp. Thermal Defense Suite | -6/Data Miner | Free Lgt. Regenerative Plating | -6/Data Miner | Free Neutron Cannon | -6/Data Miner | Free Imp. Antigrav System | -6/Data Miner | Free Point Defense Array | -6/Data Miner | Free Matter Neutralizer | -6/Data Miner | Free Impulse Thruster | -6/Data Miner | Free Centrium Wheel | -6/Data Miner | Free Imp. Remote Force Field | -6/Data Miner | Free Com. HERF Cannon | -6/Data Miner | Free Assault Drone Bay | -5/Zhirov | Free Exp. Optical Array | -5/Zhirov | Free Exp. Heat Sink | -5/Zhirov | Free Imp. Arc Thrower | -5/Zhirov | Free Robot Schematics ------------------ L-31 Rogue | -8/Recycling | Hacked Y-54 Guardian | -6/Data Miner | Free G-50 Soldier | -6/Data Miner | Free L-41 Fighter | -6/Data Miner | Free B-60 Warrior | -6/Data Miner | Free G-67 Veteran | -6/Data Miner | Free Fabricated ------------ Impulse Thruster Array | x1 | -6/Factory | Preloaded Cld. VTOL Module | x1 | -6/Factory Cld. VTOL Module | x1 | -5/Factory Alien Tech Used ----------------- Integrated Reactor Transdimensional Reconstructor Achievements -------------- None Challenges ------------ None Game ------ Seed DecoderRingBooster Manual? 0 Play Time 02:11:55 Cumulative 148.9 hours Start 2024.10.17 @ 20:12:05 End 2024.10.17 @ 22:55:13 Sessions 1 Manual Loads 0 Difficulty Rogue Special Mode None Game No. 85 Rogue 64 Adventurer 21 Explorer 0 Win Type - Total 5 Types 4/0/0/1/0/0/0/0/0 Lore% 40 Gallery% 58 Achievement% 48 Wizard Run 0 Options --------- Layout 1 ASCII 0 Keyboard 0 Movement Mouse Keybinds 0 Fullscreen 2 Font 32/SmallcapsGlow Map View 77x35 Zoom Use 0% Tactical HUD 1 Map Filters NONE Filters NONE Steam 1 RUN: 96c42a22-6e5b-4af3-9761-73c35e5b64c8